bitfinex/quotes_SOLUSD_20250420
["timestamp","ask_amount","ask_price","bid_price","bid_amount"]
[1745166542203,17.25983816,136.02,135.99,28.4961073]
[1745166542984,18.64964886,136.07,135.99,28.4961073]
[1745166543202,17.25983816,136.04,135.99,45.75594546]
[1745166545286,17.25983816,136.04,136.0,266.34]
[1745166546320,17.25983816,136.03,136.0,266.34]
[1745166546692,17.25983816,136.04,136.0,266.34]
[1745166546899,80.8,136.07,136.0,266.34]
[1745166547394,17.25983816,136.03,136.0,266.34]
[1745166550611,17.25983816,136.04,136.0,266.34]
[1745166550906,17.25983816,136.06,136.0,283.59983816]
[1745166551093,17.25983816,136.05,136.0,283.59983816]
[1745166551294,17.25983816,136.05,136.0,266.34]
[1745166554110,17.25983816,136.05,136.0,283.59983816]
[1745166554299,0.063,136.09,136.04,17.25983816]
[1745166554503,0.063,136.09,136.05,14.64]
[1745166554817,0.063,136.09,136.05,31.89983816]
[1745166555611,0.063,136.09,136.06,17.25983816]
[1745166562407,0.063,136.09,136.06,43.25983816]
[1745166565116,0.063,136.09,136.06,17.25983816]
[1745166565324,0.063,136.09,136.06,11.03401724]
[1745166565624,0.063,136.09,136.05,25.67401724]
[1745166565920,11.09701724,136.09,136.05,25.67401724]
[1745166566221,11.09701724,136.09,136.05,14.64]
[1745166567801,11.03401724,136.06,136.02,1.5743]
[1745166568005,11.03401724,136.06,136.03,14.64]
[1745166568202,11.03401724,136.05,136.03,14.64]
[1745166568827,11.03401724,136.04,136.03,14.64]
[1745166570933,11.03401724,136.05,136.03,14.64]
[1745166571319,17.25775886,136.04,136.03,14.64]
[1745166572131,17.25775886,136.05,136.03,14.64]
[1745166572332,7.9405,136.08,136.03,14.64]
[1745166572514,17.25775886,136.05,136.03,14.64]
[1745166573333,7.9405,136.08,136.03,14.64]
[1745166573334,17.25775886,136.04,136.03,14.64]
[1745166574616,17.25775886,136.05,136.03,14.64]
[1745166579678,25.19825886,136.08,136.03,14.64]
[1745166579867,17.25775886,136.04,136.03,14.64]
[1745166583477,17.25775886,136.04,136.03,266.36]
[1745166585781,17.25775886,136.05,136.03,266.36]
[1745166586574,17.25775886,136.04,136.03,266.36]
[1745166591284,11.04539137,136.04,136.03,266.36]
[1745166595778,11.04539137,136.05,136.03,266.36]
[1745166595968,7.9405,136.08,136.03,266.36]
[1745166595969,11.04539137,136.06,136.03,266.36]
[1745166597263,11.04539137,136.05,136.03,266.36]
[1745166601282,11.04539137,136.05,136.04,14.64]
[1745166601964,11.04539137,136.06,136.04,14.64]
[1745166602463,11.04539137,136.08,136.04,14.64]
[1745166602673,11.10839137,136.09,136.04,14.64]
[1745166603685,11.04539137,136.07,136.04,14.64]
[1745166604184,11.04539137,136.06,136.04,14.64]
[1745166604579,11.04539137,136.05,136.04,14.64]
[1745166607899,11.04539137,136.06,136.04,14.64]
[1745166608086,11.04539137,136.07,136.04,14.64]
[1745166608794,11.04539137,136.06,136.04,14.64]
[1745166609798,0.063,136.09,136.04,14.64]
[1745166609979,11.04539137,136.06,136.04,14.64]
[1745166611494,0.063,136.09,136.04,14.64]
[1745166611696,11.04539137,136.06,136.04,14.64]
[1745166612794,50.81924886,136.04,135.99,2.4961073]
[1745166612970,55.22695685,136.0,135.93,14.67]
[1745166613178,37.04539137,135.98,135.93,14.67]
[1745166614002,26.0,136.02,135.93,25.71539137]
[1745166614200,11.04539137,135.98,135.93,11.07539137]
[1745166614491,26.0,136.02,135.97,14.67]
[1745166614692,11.04539137,135.98,135.97,14.67]
[1745166615284,17.27608586,135.98,135.97,14.67]
[1745166620297,35.92573472,135.98,135.97,14.67]
[1745166621393,39.67288216,135.98,135.97,14.67]
[1745166621924,18.64964886,135.96,135.93,0.03]
[1745166622090,44.64964886,135.96,135.94,14.64]
[1745166622417,17.27608586,135.95,135.93,0.03]
[1745166622616,17.27608586,135.94,135.93,0.03]
[1745166622807,52.00483421,135.96,135.91,0.03]
[1745166622808,34.55217172,135.92,135.91,0.03]
[1745166623001,17.27608586,135.92,135.91,0.03]
[1745166625287,34.55217172,135.92,135.91,14.67]
[1745166626294,18.64964886,135.91,135.89,251.9]
[1745166626614,18.64964886,135.91,135.9,14.64]
[1745166627001,18.64964886,135.91,135.8,18.64964886]
[1745166627186,18.64964886,135.91,135.83,26.0]
[1745166627391,18.64964886,135.91,135.8,99.34964886]
[1745166627591,17.27608586,135.86,135.81,17.27608586]
[1745166627793,17.27608586,135.86,135.82,26.0]
[1745166629233,17.27608586,135.89,135.84,17.27608586]
[1745166629526,80.8,135.92,135.85,18.87498586]
[1745166629705,7.6729,135.97,135.85,18.87498586]
[1745166629706,17.27608586,135.9,135.85,18.87498586]
[1745166631523,17.27608586,135.89,135.85,1.5989]
[1745166634029,17.27608586,135.9,135.85,1.5989]
[1745166635118,17.27608586,135.9,135.86,266.68]
[1745166641340,11.06940315,135.9,135.86,266.68]
[1745166644445,11.06940315,135.88,135.86,266.68]
[1745166645036,11.06940315,135.87,135.86,266.68]
[1745166647324,6.3909,135.9,135.86,266.68]
[1745166647522,27.5018,135.92,135.86,266.68]
[1745166647723,1.5018,135.92,135.86,266.68]
[1745166647924,17.30814291,135.9,135.86,266.68]
[1745166651145,17.30814291,135.89,135.86,266.68]
[1745166653257,17.30814291,135.87,135.86,266.68]
[1745166659042,18.95414291,135.87,135.86,266.68]
[1745166659365,18.95414291,135.87,135.82,252.04]
[1745166659366,18.64964886,135.86,135.82,252.04]
[1745166659559,17.30814291,135.83,135.82,252.04]
[1745166659869,17.30814291,135.83,135.82,266.68]
[1745166661347,35.95779177,135.83,135.8,0.03]
[1745166661536,17.30814291,135.81,135.8,0.03]
[1745166661757,18.95414291,135.81,135.76,0.03]
[1745166661961,17.30814291,135.77,135.76,0.03]
[1745166662347,106.8,135.79,135.72,2.4961073]
[1745166662547,17.30814291,135.76,135.72,2.4961073]
[1745166662744,1.646,135.81,135.73,17.30814291]
[1745166662944,32.4769,135.82,135.74,17.30814291]
[1745166663144,8.1229,135.87,135.78,18.97424291]
[1745166663354,17.30814291,135.84,135.78,18.97424291]
[1745166663664,17.30814291,135.82,135.78,1.6661]
[1745166664173,17.30814291,135.83,135.78,18.97424291]
[1745166664567,17.30814291,135.84,135.79,17.30814291]
[1745166664769,17.30814291,135.86,135.8,43.30814291]
[1745166665059,17.30814291,135.85,135.81,26.0]
[1745166665251,17.30814291,135.83,135.82,266.78]
[1745166668257,17.30814291,135.84,135.82,266.78]
[1745166670469,17.30814291,135.83,135.82,266.78]
[1745166672150,26.0,135.87,135.82,266.78]
[1745166672349,17.30814291,135.83,135.82,266.78]
[1745166673072,26.0,135.87,135.82,266.78]
[1745166673259,17.30814291,135.83,135.82,266.78]
[1745166674068,17.30814291,135.84,135.82,266.78]
[1745166674865,80.863,135.89,135.82,266.78]
[1745166675074,17.30814291,135.85,135.82,266.78]
[1745166675947,80.863,135.89,135.82,266.78]
[1745166676153,17.30814291,135.85,135.82,266.78]
[1745166676564,17.30814291,135.86,135.82,266.78]
[1745166676866,17.30814291,135.87,135.82,284.08814291]
[1745166677246,17.30814291,135.86,135.82,266.78]
[1745166677573,17.30814291,135.87,135.82,284.08814291]
[1745166678769,17.30814291,135.86,135.82,266.78]
[1745166679371,17.30814291,135.87,135.82,284.08814291]
[1745166683477,0.063,135.89,135.82,266.78]
[1745166683478,17.30814291,135.86,135.82,266.78]
[1745166683669,17.30814291,135.87,135.82,284.08814291]
[1745166684349,17.30814291,135.86,135.82,266.78]
[1745166684981,17.30814291,135.88,135.83,17.30814291]
[1745166685277,17.30814291,135.88,135.83,43.30814291]
[1745166685468,0.063,135.89,135.84,17.30814291]
[1745166685767,17.30814291,135.88,135.83,43.30814291]
[1745166685953,0.063,135.89,135.88,26.0]
[1745166686151,8.1205,136.0,135.91,26.0]
[1745166686369,51.42864291,136.0,135.91,43.30814291]
[1745166686659,17.30814291,135.98,135.93,17.30814291]
[1745166686864,17.30814291,135.98,135.94,266.76]
[1745166687065,17.30814291,135.96,135.94,266.76]
[1745166688577,17.37114291,135.97,135.94,266.76]
[1745166688960,0.063,135.97,135.94,266.76]
[1745166689367,0.063,135.97,135.94,284.06814291]
[1745166690259,0.063,135.97,135.94,266.76]
[1745166693073,17.37114291,135.97,135.94,266.76]
[1745166693281,17.30814291,135.96,135.94,266.76]
[1745166693483,17.30814291,135.95,135.94,266.76]
[1745166694976,17.37114291,135.97,135.94,266.76]
[1745166696770,17.30814291,135.95,135.94,266.76]
[1745166700190,0.063,135.97,135.94,266.76]
[1745166700191,17.37114291,135.97,135.94,266.76]
[1745166700389,0.063,135.97,135.94,266.76]
[1745166703066,17.30814291,135.96,135.94,266.76]
[1745166705366,0.063,135.97,135.94,266.76]
[1745166705367,17.37114291,135.97,135.94,266.76]
[1745166708372,0.063,135.97,135.94,266.76]
[1745166710285,0.063,135.97,135.94,284.06814291]
[1745166710483,0.063,135.97,135.96,17.30814291]
[1745166710676,0.063,135.97,135.95,17.30814291]
[1745166711080,0.063,135.97,135.94,284.06814291]
[1745166711795,0.063,135.97,135.94,292.76]
[1745166711982,17.30814291,135.96,135.94,292.76]
[1745166712695,17.37114291,135.97,135.94,292.76]
[1745166712899,0.063,135.97,135.94,292.76]
[1745166713689,17.37114291,135.97,135.95,14.78]
[1745166716104,0.063,135.97,135.95,14.78]
[1745166716481,0.063,135.97,135.95,32.08814291]
[1745166717887,0.063,135.97,135.96,17.30814291]
[1745166719103,0.063,135.97,135.96,26.0]
[1745166719279,0.063,135.97,135.96,43.30814291]
[1745166719896,0.063,135.97,135.96,26.0]
[1745166723085,17.37114291,135.97,135.95,14.78]
[1745166723289,17.30814291,135.96,135.95,14.78]
[1745166724089,17.37114291,135.97,135.95,14.78]
[1745166725381,0.063,135.97,135.96,17.30814291]
[1745166726489,0.063,135.97,135.96,61.95779177]
[1745166727589,0.063,135.97,135.96,35.95779177]
[1745166728914,0.063,135.97,135.96,116.65779177]
[1745166730309,0.063,136.01,135.96,116.65779177]
[1745166730510,0.063,136.01,135.99,17.30814291]
[1745166730814,0.063,136.01,136.0,31.96814291]
[1745166730999,0.063,136.01,136.0,14.66]
[1745166731714,0.063,136.01,136.0,31.96814291]
[1745166733912,0.063,136.01,136.0,14.66]
[1745166735601,0.063,136.01,136.0,31.96814291]
[1745166735803,0.063,136.01,136.0,283.76814291]
[1745166741319,0.063,136.01,136.0,277.50320313]
[1745166742617,0.063,136.01,136.0,296.15285199]
[1745166742812,0.063,136.01,136.0,297.68935199]
[1745166742995,0.063,136.01,136.0,378.38935199]
[1745166748026,0.063,136.01,136.0,422.56216451]
[1745166748320,0.063,136.01,136.0,423.56216451]
[1745166748623,0.063,136.03,136.01,18.64964886]
[1745166748818,0.063,136.03,136.02,11.04320313]
[1745166749002,0.063,136.03,136.02,91.74320313]
[1745166749205,0.063,136.05,136.03,18.64964886]
[1745166749525,0.063,136.05,136.04,29.69285199]
[1745166752222,0.063,136.05,136.04,35.4398434]
[1745166752733,0.063,136.05,136.04,29.69285199]
[1745166753327,0.063,136.05,136.04,110.39285199]
[1745166754106,0.063,136.05,136.04,116.15915217]
[1745166755017,0.063,136.05,136.04,110.39285199]
[1745166757131,0.063,136.05,136.04,99.34964886]
[1745166757345,0.063,136.05,136.04,80.7]
[1745166757526,0.063,136.05,136.04,14.64]
[1745166762421,0.063,136.05,136.04,25.68320313]
[1745166762618,0.063,136.05,136.04,44.33285199]
[1745166762822,0.063,136.05,136.04,151.03285199]
[1745166768234,0.063,136.05,136.04,125.03285199]
[1745166768625,0.063,136.05,136.04,126.03285199]
[1745166769022,0.063,136.07,136.05,18.64964886]
[1745166769347,0.063,136.07,136.06,11.04320313]
[1745166770037,0.063,136.07,136.06,110.39285199]
[1745166774844,0.063,136.1,136.09,44.64964886]
[1745166775044,0.063,136.1,136.09,136.39285199]
[1745166775342,0.063,136.1,136.09,402.61285199]
[1745166776339,0.063,136.11,136.09,402.61285199]
[1745166776546,0.063,136.11,136.1,11.04320313]
[1745166776924,0.063,136.11,136.1,29.69285199]
[1745166781557,0.063,136.11,136.1,18.64964886]
[1745166781733,0.063,136.11,136.1,29.69285199]
[1745166781932,0.063,136.11,136.1,18.64964886]
[1745166783334,15.82045191,136.13,136.1,26.0]
[1745166784454,6.3603,136.13,136.1,26.0]
[1745166787752,11.04320313,136.12,136.09,266.22]
[1745166788963,17.40350313,136.13,136.09,266.22]
[1745166790364,6.3603,136.13,136.09,266.22]
[1745166790546,17.40350313,136.13,136.09,266.22]
[1745166793754,11.04320313,136.12,136.09,266.22]
[1745166794345,17.40350313,136.13,136.09,266.22]
[1745166798866,11.10620313,136.14,136.09,277.26320313]
[1745166800368,0.063,136.14,136.1,29.69285199]
[1745166800677,0.063,136.14,136.11,11.04320313]
[1745166801262,0.063,136.14,136.1,29.69285199]
[1745166801857,0.063,136.14,136.1,18.64964886]
[1745166802062,11.04320313,136.12,136.11,26.0]
[1745166802370,11.04320313,136.12,136.09,292.22]
[1745166803374,11.04320313,136.11,136.09,292.22]
[1745166804158,11.04320313,136.12,136.09,292.22]
[1745166804976,11.10620313,136.14,136.09,303.26320313]
[1745166805176,0.063,136.14,136.1,11.04320313]
[1745166808854,0.063,136.14,136.1,29.69285199]
[1745166809059,0.063,136.14,136.1,110.39285199]
[1745166813892,0.063,136.14,136.11,29.69285199]
[1745166814072,0.063,136.14,136.12,37.04320313]
[1745166814789,0.063,136.14,136.13,29.69285199]
[1745166814979,0.063,136.15,136.14,29.69285199]
[1745166815291,0.063,136.15,136.14,44.31285199]
[1745166820386,0.063,136.15,136.14,14.62]
[1745166824198,0.063,136.15,136.14,266.12]
[1745166824771,0.063,136.15,136.14,295.81285199]
[1745166826696,0.063,136.15,136.14,376.51285199]
[1745166829607,0.063,136.15,136.14,365.46964886]
[1745166831506,0.063,136.15,136.14,346.82]
[1745166832577,0.063,136.15,136.14,266.12]
[1745166837919,0.063,136.15,136.14,295.81285199]
[1745166838421,0.063,136.15,136.14,376.51285199]
[1745166838803,0.063,136.15,136.14,365.46964886]
[1745166839594,0.063,136.15,136.14,346.82]
[1745166840099,11.10620313,136.15,136.14,346.82]
[1745166840504,12.68770313,136.15,136.14,346.82]
[1745166841117,12.68770313,136.15,136.14,266.12]
[1745166842098,11.10620313,136.15,136.14,266.12]
[1745166844201,0.063,136.15,136.14,266.12]
[1745166868546,0.063,136.15,136.14,376.51285199]
[1745166868717,0.063,136.17,136.16,29.69285199]
[1745166868917,0.063,136.17,136.16,116.33223193]
[1745166870153,0.063,136.18,136.16,116.33223193]
[1745166870364,0.063,136.18,136.17,11.04320313]
[1745166872880,0.063,136.18,136.17,37.04320313]
[1745166873642,0.063,136.18,136.17,117.74320313]
[1745166875365,0.063,136.18,136.17,91.74320313]
[1745166877576,0.063,136.19,136.18,18.64964886]
[1745166877875,0.063,136.19,136.18,110.39285199]
[1745166886476,0.063,136.19,136.18,106.7]
[1745166888380,0.063,136.19,136.18,121.3]
[1745166891085,0.063,136.19,136.18,150.99285199]
[1745166891260,0.063,136.19,136.18,124.99285199]
[1745166894085,0.063,136.19,136.18,376.39285199]
[1745166897783,0.03,136.21,136.2,18.64964886]
[1745166898091,0.03,136.21,136.2,110.39285199]
[1745166898785,0.03,136.21,136.2,99.34964886]
[1745166899099,0.03,136.21,136.2,110.39285199]
[1745166899396,0.03,136.21,136.2,99.34964886]
[1745166899572,0.03,136.21,136.2,110.39285199]
[1745166900992,0.03,136.21,136.2,124.99285199]
[1745166901569,0.063,136.22,136.2,124.99285199]
[1745166901570,0.063,136.23,136.22,44.64964886]
[1745166901791,0.03,136.25,136.23,18.64964886]
[1745166902095,0.03,136.25,136.24,29.69285199]
[1745166902270,0.03,136.25,136.24,110.39285199]
[1745166904089,0.063,136.27,136.26,26.0]
[1745166904290,0.063,136.27,136.26,132.34320313]
[1745166905193,0.03,136.29,136.27,18.64964886]
[1745166905889,0.03,136.29,136.27,29.69285199]
[1745166906085,0.03,136.29,136.28,55.69285199]
[1745166906282,0.03,136.29,136.28,110.39285199]
[1745166907481,0.03,136.32,136.28,110.39285199]
[1745166907680,0.03,136.32,136.29,29.69285199]
[1745166907900,0.03,136.32,136.29,18.64964886]
[1745166908909,0.03,136.32,136.28,80.7]
[1745166908910,11.07320313,136.32,136.28,80.7]
[1745166909398,0.03,136.32,136.28,91.74320313]
[1745166911606,11.07320313,136.32,136.29,26.0]
[1745166914525,0.03,136.32,136.29,26.0]
[1745166915119,0.03,136.32,136.29,277.24]
[1745166915311,11.04320313,136.31,136.29,277.24]
[1745166915910,11.07320313,136.32,136.29,277.24]
[1745166917604,11.04320313,136.31,136.29,277.24]
[1745166918013,17.13480313,136.31,136.29,277.24]
[1745166918213,11.07320313,136.3,136.29,277.24]
[1745166918417,0.03,136.3,136.29,277.24]
[1745166918622,0.03,136.3,136.29,291.82]
[1745166928824,11.07320313,136.3,136.29,265.82]
[1745166929028,0.03,136.3,136.29,265.82]
[1745166929231,11.07320313,136.3,136.29,265.82]
[1745166929411,0.03,136.3,136.29,265.82]
[1745166930428,11.07320313,136.3,136.29,265.82]
[1745166931831,0.03,136.3,136.29,265.82]
[1745166940014,11.07320313,136.3,136.29,265.82]
[1745166941136,11.07320313,136.3,136.29,251.24]
[1745166941337,11.07320313,136.3,136.29,265.82]
[1745166941638,18.99790313,136.3,136.29,265.82]
[1745166959152,0.03,136.3,136.29,265.82]
[1745166959851,0.03,136.32,136.31,26.0]
[1745166960036,0.03,136.32,136.31,37.04320313]
[1745166960236,0.03,136.32,136.31,26.0]
[1745166960948,0.03,136.32,136.3,1.641]
[1745166961544,0.03,136.32,136.29,265.82]
[1745166964043,0.03,136.32,136.3,17.70220313]
[1745166964246,0.03,136.33,136.32,1.641]
[1745166964457,0.03,136.33,136.32,12.68420313]
[1745166966234,0.03,136.33,136.32,112.03385199]
[1745166968161,0.03,136.33,136.32,138.03385199]
[1745166971173,0.03,136.33,136.32,144.01301182]
[1745166971470,0.03,136.33,136.32,138.03385199]
[1745166973975,0.03,136.38,136.33,18.64964886]
[1745166974142,0.03,136.44,136.37,11.04320313]
[1745166974353,11.07320313,136.44,136.39,11.04320313]
[1745166974546,11.07320313,136.44,136.4,251.18]
[1745166974752,11.04320313,136.43,136.4,251.18]
[1745166975452,11.07320313,136.44,136.4,251.18]
[1745166977879,11.04320313,136.41,136.4,251.18]
[1745166978378,11.04320313,136.42,136.4,251.18]
[1745166978557,11.04320313,136.41,136.4,251.18]
[1745166978955,11.04320313,136.42,136.4,251.18]
[1745166979568,11.04320313,136.41,136.4,251.18]
[1745166981179,11.04320313,136.43,136.4,251.18]
[1745166981468,0.03,136.44,136.4,251.18]
[1745166981673,11.04320313,136.43,136.4,251.18]
[1745166983477,0.03,136.44,136.4,288.22320313]
[1745166983671,0.03,136.44,136.42,11.04320313]
[1745166983880,0.03,136.44,136.43,14.56]
[1745166984183,0.03,136.44,136.43,25.60320313]
[1745166984671,0.03,136.44,136.43,14.56]
[1745166987867,0.03,136.44,136.4,357.88]
[1745166987868,11.07320313,136.44,136.4,357.88]
[1745166988072,11.07320313,136.44,136.43,14.56]
[1745166988574,0.03,136.44,136.43,14.56]
[1745166994777,11.07320313,136.44,136.43,14.56]
[1745167000190,12.61940313,136.44,136.43,14.56]
[1745167000707,12.61940313,136.44,136.4,251.18]
[1745167001012,11.04320313,136.41,136.36,26.0]
[1745167001208,11.04320313,136.39,136.36,26.0]
[1745167001373,11.04320313,136.39,136.35,80.7]
[1745167002987,11.04320313,136.4,136.35,91.74320313]
[1745167004409,11.04320313,136.39,136.38,26.0]
[1745167005320,11.04320313,136.4,136.38,291.6]
[1745167008614,11.04320313,136.41,136.38,291.6]
[1745167009497,0.03,136.44,136.38,383.34320313]
[1745167009702,11.04320313,136.43,136.38,383.34320313]
[1745167009900,0.03,136.44,136.39,11.04320313]
[1745167010113,0.03,136.44,136.42,11.04320313]
[1745167010312,0.03,136.44,136.43,14.56]
[1745167013916,0.03,136.49,136.47,26.0]
[1745167014213,0.03,136.5,136.48,40.56]
[1745167014418,0.03,136.5,136.49,251.02]
[1745167015607,11.07320313,136.5,136.49,251.02]
[1745167017321,17.1740583,136.5,136.49,251.02]
[1745167018323,0.03,136.5,136.49,251.02]
[1745167020229,1.31234,136.54,136.52,26.0]
[1745167020433,1.31234,136.54,136.53,31.7040583]
[1745167020632,1.31234,136.54,136.53,14.56]
[1745167022432,18.4563983,136.54,136.53,14.56]
[1745167026434,1.31234,136.54,136.53,14.56]
[1745167026636,18.4563983,136.54,136.53,14.56]
[1745167027333,1.31234,136.54,136.53,14.56]
[1745167028136,18.4563983,136.54,136.53,14.56]
[1745167028530,1.31234,136.54,136.53,14.56]
[1745167034222,18.4563983,136.54,136.53,14.56]
[1745167036736,18.4563983,136.54,136.53,265.4]
[1745167037343,12.28053719,136.54,136.53,265.4]
[1745167049464,12.28053719,136.54,136.53,250.86]
[1745167049641,13.85663719,136.54,136.45,1.5759]
[1745167049842,10.96819719,136.48,136.47,26.0]
[1745167051560,10.96819719,136.48,136.44,0.063]
[1745167051760,10.96819719,136.45,136.44,0.063]
[1745167055161,10.96819719,136.45,136.44,265.503]
[1745167059864,10.96819719,136.47,136.44,265.503]
[1745167063069,10.96819719,136.46,136.44,265.503]
[1745167065985,10.96819719,136.45,136.44,265.503]
[1745167073173,10.96819719,136.47,136.44,265.503]
[1745167075398,6.1043,136.51,136.44,265.503]
[1745167075786,10.96819719,136.47,136.44,265.503]
[1745167082701,10.96819719,136.46,136.44,265.503]
[1745167083002,10.96819719,136.45,136.44,265.503]
[1745167090912,18.64964886,136.5,136.44,265.503]
[1745167091110,10.96819719,136.47,136.44,265.503]
[1745167093313,1.31234,136.54,136.49,26.0]
[1745167093505,1.31234,136.54,136.53,36.96819719]
[1745167093691,1.31234,136.54,136.53,26.0]
[1745167097408,1.31234,136.54,136.53,36.96819719]
[1745167098312,0.03,136.56,136.53,43.24799719]
[1745167098515,0.03,136.56,136.55,10.96819719]
[1745167098815,0.03,136.56,136.55,276.38819719]
[1745167099018,0.03,136.56,136.55,265.42]
[1745167101021,0.03,136.56,136.55,276.38819719]
[1745167103615,0.03,136.56,136.55,265.42]
[1745167103804,10.99819719,136.56,136.55,265.42]
[1745167106627,10.99819719,136.56,136.55,250.88]
[1745167106820,10.99819719,136.56,136.55,265.42]
[1745167108332,0.03,136.56,136.55,265.42]
[1745167109918,0.03,136.56,136.55,291.42]
[1745167110532,0.03,136.56,136.55,302.38819719]
[1745167111352,0.03,136.56,136.55,375.73784605]
[1745167115620,0.03,136.58,136.57,44.64964886]
[1745167115819,0.03,136.58,136.57,136.31784605]
[1745167117829,0.03,136.58,136.57,139.92340217]
[1745167121551,0.03,136.58,136.55,331.58]
[1745167121847,10.99819719,136.58,136.56,14.62]
[1745167122018,10.99819719,136.58,136.57,26.0]
[1745167122416,0.03,136.58,136.57,26.0]
[1745167130754,0.03,136.58,136.57,276.7]
[1745167134264,0.03,136.58,136.57,287.66819719]
[1745167134562,0.03,136.58,136.57,276.7]
[1745167137239,10.99819719,136.58,136.57,250.7]
[1745167141563,18.69909719,136.58,136.57,250.7]
[1745167146856,10.99819719,136.58,136.57,250.7]
[1745167147049,0.03,136.58,136.57,250.7]
[1745167147943,10.99819719,136.58,136.57,250.7]
[1745167157246,0.03,136.58,136.57,250.7]
[1745167159277,10.99819719,136.58,136.57,250.7]
[1745167159869,0.03,136.58,136.57,250.7]
[1745167160071,10.99819719,136.58,136.57,250.7]
[1745167169173,10.99819719,136.58,136.57,250.7]
[1745167182567,10.99819719,136.58,136.57,250.7]
[1745167184963,0.03,136.58,136.57,250.7]
[1745167186088,10.99819719,136.58,136.57,250.7]
[1745167209313,0.03,136.58,136.57,250.7]
[1745167209498,10.99819719,136.58,136.57,250.7]
[1745167209699,0.03,136.58,136.57,250.7]
[1745167209911,10.99819719,136.58,136.57,250.7]
[1745167211417,0.03,136.58,136.57,250.7]
[1745167215415,10.99819719,136.58,136.57,250.7]
[1745167219216,10.99819719,136.58,136.57,265.24]
[1745167225113,54.87098595,136.58,136.57,265.28]
[1745167225429,54.87098595,136.58,136.49,80.7]
[1745167225627,10.96819719,136.51,136.49,80.7]
[1745167225833,10.96819719,136.51,136.5,26.063]
[1745167226133,10.96819719,136.52,136.5,26.063]
[1745167226510,10.96819719,136.51,136.5,26.063]
[1745167226716,10.96819719,136.51,136.5,0.063]
[1745167226916,10.96819719,136.51,136.5,26.063]
[1745167227926,10.96819719,136.52,136.5,26.063]
[1745167231112,43.87278876,136.56,136.5,26.063]
[1745167231432,10.96819719,136.52,136.5,26.063]
[1745167231733,10.96819719,136.51,136.5,26.063]
[1745167234730,10.96819719,136.52,136.5,26.063]
[1745167235237,43.87278876,136.56,136.51,265.36]
[1745167235414,10.96819719,136.52,136.51,265.36]
[1745167245833,6.4875,136.58,136.51,265.36]
[1745167246029,10.96819719,136.55,136.51,265.36]
[1745167246532,6.4875,136.58,136.51,265.36]
[1745167246738,10.96819719,136.55,136.51,265.36]
[1745167246939,10.96819719,136.54,136.51,265.36]
[1745167247321,6.4875,136.58,136.51,265.36]
[1745167247521,10.96819719,136.54,136.51,265.36]
[1745167247745,10.96819719,136.53,136.51,265.36]
[1745167249629,10.96819719,136.52,136.51,265.36]
[1745167258848,99.44964886,136.55,136.51,265.36]
[1745167259154,10.96819719,136.52,136.51,265.36]
[1745167259858,37.14464605,136.52,136.48,0.063]
[1745167260162,10.96819719,136.49,136.48,0.063]
[1745167265161,10.96819719,136.49,136.48,265.503]
[1745167269257,10.96819719,136.5,136.48,265.503]
[1745167270964,10.96819719,136.51,136.48,265.503]
[1745167271167,50.28428876,136.56,136.48,265.503]
[1745167271168,10.96819719,136.52,136.48,291.503]